fUST/lending_fUST_20240118
["ID","MTS","AMOUNT","RATE_DAILY","PERIOD"]
[312051594,1705583087034,-902.29,0.00043835,60]
[312051595,1705583087059,-902.29,0.00043835,60]
[312051596,1705583087084,-902.29,0.00043835,60]
[312051597,1705583087118,-902.29,0.00043835,60]
[312051598,1705583087144,-902.29,0.00043835,60]
[312051599,1705583087168,-500.0,0.00043835,60]
[312051600,1705583087193,-902.29,0.00043835,60]
[312051601,1705583087217,-500.0,0.00043835,60]
[312051602,1705583087242,-902.29,0.00043835,60]
[312051603,1705583087265,-333.94524298,0.00043835,60]
[312051604,1705583087291,-902.29,0.00043835,60]
[312051605,1705583087319,-902.29,0.00043835,60]
[312051606,1705583087343,-902.29,0.00043835,60]
[312051607,1705583087372,-902.29,0.00043835,60]
[312051608,1705583087398,-500.0,0.00043835,60]
[312051609,1705583087425,-902.29,0.00043835,60]
[312051610,1705583087452,-902.29,0.00043835,60]
[312051611,1705583087477,-902.29,0.00043835,60]
[312051612,1705583087506,-902.29,0.00043835,60]
[312051613,1705583087533,-500.0,0.00043835,60]
[312051614,1705583087562,-500.0,0.00043835,60]
[312051615,1705583087588,-902.29,0.00043835,60]
[312051616,1705583087615,-902.29,0.00043835,60]
[312051617,1705583087640,-451.80721191,0.00043835,60]
[312051618,1705583087665,-902.29,0.00043835,60]
[312051619,1705583087690,-504.38773086,0.00043835,60]
[312051620,1705583087716,-902.29,0.00043835,60]
[312051621,1705583087742,-902.40191175,0.00043835,60]
[312051622,1705583087767,-500.0,0.00043835,60]
[312051623,1705583087862,-500.0,0.00043835,60]
[312051624,1705583087887,-503.4258123,0.00043835,60]
[312051625,1705583087912,-501.31020996,0.00043835,60]
[312051626,1705583087937,-500.0,0.00043835,60]
[312051627,1705583087961,-500.0,0.00043835,60]
[312051628,1705583087986,-502.1530719,0.00043835,60]
[312051629,1705583088010,-522.43826179,0.00043835,60]
[312051630,1705583088035,-500.0,0.00043835,60]
[312051631,1705583088061,-500.0,0.00043835,60]
[312051632,1705583088087,-500.0,0.00043835,60]
[312051633,1705583088112,-500.0,0.00043835,60]
[312051634,1705583088136,-500.0,0.00043835,60]
[312051635,1705583088161,-950.05,0.00043835,60]
[312051636,1705583088186,-500.0,0.00043835,60]
[312051637,1705583088211,-500.0,0.00043835,60]
[312051638,1705583088237,-500.0,0.00043835,60]
[312051639,1705583088262,-500.0,0.00043835,60]
[312051640,1705583088286,-500.0,0.00043835,60]
[312051641,1705583088311,-500.0,0.00043835,60]
[312051642,1705583088336,-500.0,0.00043835,60]
[312051643,1705583088362,-500.0,0.00043835,60]
[312051644,1705583088387,-500.0,0.00043835,60]
[312051645,1705583088412,-500.0,0.00043835,60]
[312051646,1705583088438,-620.11,0.00043835,60]
[312051647,1705583088467,-500.0,0.00043835,60]
[312051648,1705583088491,-500.53372034,0.00043835,60]
[312051649,1705583088516,-300.843832,0.00043835,60]
[312051650,1705583088541,-500.0,0.00043835,60]
[312051651,1705583088567,-1085.92,0.00043835,60]
[312051652,1705583088595,-500.0,0.00043835,60]
[312051653,1705583088620,-500.0,0.00043835,60]
[312051654,1705583088645,-500.0,0.00043835,60]
[312051655,1705583088669,-300.0,0.00043835,60]
[312051656,1705583088694,-646.54,0.00043835,60]
[312051657,1705583088718,-646.54,0.00043835,60]
[312051658,1705583088742,-646.54,0.00043835,60]
[312051659,1705583088766,-646.54,0.00043835,60]
[312051660,1705583088790,-504.89075612,0.00043835,60]
[312051661,1705583088818,-646.54,0.00043835,60]
[312051662,1705583088842,-350.00035,0.00043835,60]
[312051663,1705583088867,-501.48503161,0.00043835,60]
[312051664,1705583088892,-646.54,0.00043835,60]
[312051665,1705583088916,-646.54,0.00043835,60]
[312051666,1705583088942,-646.54,0.00043835,60]
[312051667,1705583088966,-646.54,0.00043835,60]
[312051668,1705583088991,-646.54,0.00043835,60]
[312051669,1705583089015,-646.54,0.00043835,60]
[312051670,1705583089040,-500.0,0.00043835,60]
[312051671,1705583089064,-646.54,0.00043835,60]
[312051672,1705583089089,-646.54,0.00043835,60]
[312051673,1705583089114,-646.54,0.00043835,60]
[312051674,1705583089139,-646.54,0.00043835,60]
[312051675,1705583089164,-646.54,0.00043835,60]
[312051676,1705583089189,-646.54,0.00043835,60]
[312051677,1705583089213,-646.54,0.00043835,60]
[312051678,1705583089238,-513.06,0.00043835,60]
[312051679,1705583089334,-646.54,0.00043835,60]
[312051680,1705583089360,-646.54,0.00043835,60]
[312051681,1705583089388,-646.54,0.00043835,60]
[312051682,1705583089416,-646.54,0.00043835,60]
[312051683,1705583089443,-646.54,0.00043835,60]
[312051684,1705583089470,-646.65594657,0.00043835,60]
[312051685,1705583089495,-500.0,0.00043835,60]
[312051686,1705583089520,-500.0,0.00043835,60]
[312051687,1705583089548,-500.53736476,0.00043835,60]
[312051688,1705583089573,-500.0,0.00043835,60]
[312051689,1705583089598,-634.23722324,0.00043835,60]
[312051690,1705583089624,-501.46121602,0.00043835,60]
[312051691,1705583089649,-314.11044728,0.00043835,60]
[312051692,1705583089675,-500.0,0.00043835,60]
[312051693,1705583089699,-5669.22,0.00043835,60]
[312051694,1705583089723,-500.91335171,0.00043835,60]
[312051695,1705583089746,-500.0,0.00043835,60]
[312051696,1705583089770,-500.0,0.00043835,60]
[312051697,1705583089795,-215.00807506,0.00043835,60]
[312051698,1705583089822,-4922.18,0.00043835,60]
[312051699,1705583089847,-500.0,0.00043835,60]
[312051700,1705583089872,-541.83224228,0.00043835,60]
[312051701,1705583089897,-504.10090729,0.00043835,60]
[312051702,1705583089922,-500.0,0.00043835,60]
[312051703,1705583089946,-500.0,0.00043835,60]
[312051704,1705583089971,-4567.86,0.00043835,60]
[312051705,1705583089996,-1966.44,0.00043835,60]
[312051706,1705583090020,-500.0,0.00043835,60]
[312051707,1705583090046,-500.0,0.00043835,60]
[312051708,1705583090072,-500.0,0.00043835,60]
[312051709,1705583090096,-500.0,0.00043835,60]
[312051710,1705583090121,-1362.61,0.00043835,60]
[312051711,1705583090145,-500.0,0.00043835,60]
[312051712,1705583090170,-500.62077574,0.00043835,60]
[312051713,1705583090194,-474.89250005,0.00043835,60]
[312051714,1705583090218,-500.0,0.00043835,60]
[312051715,1705583090244,-500.0,0.00043835,60]
[312051716,1705583090268,-500.0,0.00043835,60]
[312051717,1705583090293,-818.78,0.00043835,60]
[312051718,1705583090319,-500.0,0.00043835,60]
[312051719,1705583090343,-500.0,0.00043835,60]
[312051720,1705583090369,-1938.41,0.00043835,60]
[312051721,1705583090395,-1017.2,0.00043835,60]
[312051722,1705583090419,-500.0,0.00043835,60]
[312051723,1705583090445,-200.0,0.00043835,60]
[312051724,1705583090470,-500.0,0.00043835,60]
[312051725,1705583090495,-1175.25,0.00043835,60]
[312051726,1705583090520,-500.0,0.00043835,60]
[312051727,1705583090546,-500.0,0.00043835,60]
[312051728,1705583090574,-500.0,0.00043835,60]
[312051729,1705583090599,-500.0,0.00043835,60]
[312051730,1705583090625,-500.0,0.00043835,60]
[312051731,1705583090651,-500.0,0.00043835,60]
[312051732,1705583090763,-514.11614301,0.00043835,60]
[312051733,1705583090789,-501.73625022,0.00043835,60]
[312051734,1705583090817,-926.27,0.00043835,60]
[312051735,1705583090844,-500.0,0.00043835,60]
[312051736,1705583090872,-500.0,0.00043835,60]
[312051737,1705583090898,-1757.42,0.00043835,60]
[312051738,1705583090937,-500.0,0.00043835,60]
[312051739,1705583090965,-500.0,0.00043835,60]
[312051740,1705583090991,-1234.54,0.00043835,60]
[312051741,1705583091018,-1757.82,0.00043835,60]
[312051742,1705583091052,-500.0,0.00043835,60]
[312051743,1705583091088,-500.0,0.00043835,60]
[312051744,1705583091114,-500.0,0.00043835,60]
[312051745,1705583091139,-160.0,0.00043839,30]
[312051746,1705583091164,-38472.99333961,0.00044,30]
[312051747,1705583091190,-160.0,0.00044093,31]
[312051748,1705583091215,-452.29769466,0.00044109,60]
[312051749,1705583091239,-500.0,0.00044109,60]
[312051750,1705583091263,-500.0,0.00044109,60]
[312051751,1705583091288,-500.0,0.00044109,60]
[312051752,1705583091316,-230.48355744,0.00044109,60]
[312051753,1705583091340,-500.0,0.00044109,60]
[312051754,1705583091366,-500.0,0.00044109,60]
[312051755,1705583091390,-500.0,0.00044109,60]
[312051756,1705583091415,-500.0,0.00044109,60]
[312051757,1705583091440,-599.03146019,0.00044109,60]
[312051758,1705583091466,-500.0,0.00044109,60]
[312051759,1705583091491,-500.0,0.00044109,60]
[312051760,1705583091517,-502.17638067,0.00044109,60]
[312051761,1705583091543,-500.0,0.00044109,60]
[312051762,1705583091574,-500.0,0.00044109,60]
[312051763,1705583091599,-500.0,0.00044109,60]
[312051764,1705583091625,-500.0,0.00044109,60]
[312051765,1705583091650,-500.0,0.00044109,60]
[312051766,1705583091675,-500.0,0.00044109,60]
[312051767,1705583091699,-631.7872854,0.00044109,60]
[312051768,1705583091725,-510.76894001,0.00044109,60]
[312051769,1705583091749,-504.2170462,0.00044109,60]
[312051770,1705583091773,-500.0,0.00044109,60]
[312051771,1705583091798,-500.0,0.00044109,60]
[312051772,1705583091823,-500.0,0.00044109,60]
[312051773,1705583091847,-500.0,0.00044109,60]
[312051774,1705583091872,-502.20252992,0.00044109,60]
[312051775,1705583091895,-150.0,0.00044109,60]
[312051776,1705583091920,-500.0,0.00044109,60]
[312051777,1705583091944,-501.36601449,0.00044109,60]
[312051778,1705583091969,-500.0,0.00044109,60]
[312051779,1705583091993,-520.44002351,0.00044109,60]
[312051780,1705583092016,-500.0,0.00044109,60]
[312051781,1705583092041,-221.30751281,0.00044109,60]
[312051782,1705583092067,-500.0,0.00044109,60]
[312051783,1705583092158,-500.0,0.00044109,60]
[312051784,1705583092185,-500.0,0.00044109,60]
[312051785,1705583092212,-500.0,0.00044109,60]
[312051786,1705583092240,-500.0,0.00044109,60]
[312051787,1705583092269,-500.0,0.00044109,60]
[312051788,1705583092295,-500.0,0.00044109,60]
[312051789,1705583092322,-500.0,0.00044109,60]
[312051790,1705583092347,-500.0,0.00044109,60]
[312051791,1705583092371,-500.0,0.00044109,60]
[312051792,1705583092395,-500.0,0.00044109,60]
[312051793,1705583092420,-500.0,0.00044109,60]
[312051794,1705583092445,-500.0,0.00044109,60]
[312051795,1705583092470,-500.0,0.00044109,60]
[312051796,1705583092495,-500.0,0.00044109,60]
[312051797,1705583092519,-500.0,0.00044109,60]
[312051798,1705583092544,-500.0,0.00044109,60]
[312051799,1705583092570,-538.98,0.00044109,60]
[312051800,1705583092599,-510.96602421,0.00044109,60]
[312051801,1705583092624,-500.0,0.00044109,60]
[312051802,1705583092649,-500.0,0.00044109,60]
[312051803,1705583092674,-846.06,0.00044109,60]
[312051804,1705583092699,-350.0,0.00044109,60]
[312051805,1705583092723,-500.0,0.00044109,60]
[312051806,1705583092749,-390.58929485,0.00044109,60]
[312051807,1705583092775,-500.0,0.00044109,60]
[312051808,1705583092802,-500.0,0.00044109,60]
[312051809,1705583092827,-500.0,0.00044109,60]
[312051810,1705583092851,-501.611874,0.00044109,60]
[312051811,1705583092877,-500.0,0.00044109,60]
[312051812,1705583092902,-430.98156131,0.00044109,60]
[312051813,1705583092927,-500.91720663,0.00044109,60]
[312051814,1705583092952,-500.0,0.00044109,60]
[312051815,1705583092977,-500.0,0.00044109,60]
[312051816,1705583093009,-604.12574127,0.00044109,60]
[312051817,1705583093034,-320.66214858,0.00044109,60]
[312051818,1705583093061,-500.0,0.00044109,60]
[312051819,1705583093084,-373.5142545,0.00044109,60]
[312051820,1705583093107,-500.0,0.00044109,60]
[312051821,1705583093136,-500.0,0.00044109,60]
[312051822,1705583093162,-500.0,0.00044109,60]
[312051823,1705583093187,-965.45,0.00044109,60]
[312051824,1705583093212,-613.20896247,0.00044109,60]
[312051825,1705583093238,-500.0,0.00044109,60]
[312051826,1705583093262,-501.99862729,0.00044109,60]
[312051827,1705583093286,-646.42,0.00044109,60]
[312051828,1705583093311,-501.14796052,0.00044109,60]
[312051829,1705583093335,-500.0,0.00044109,60]
[312051830,1705583093360,-500.0,0.00044109,60]
[312051831,1705583093388,-500.0,0.00044109,60]
[312051832,1705583093413,-500.0,0.00044109,60]
[312051833,1705583093505,-500.77064087,0.00044109,60]
[312051834,1705583093531,-500.0,0.00044109,60]
[312051835,1705583093558,-512.68900312,0.00044109,60]
[312051836,1705583093583,-500.0,0.00044109,60]
[312051837,1705583093613,-500.0,0.00044109,60]
[312051838,1705583093640,-500.0,0.00044109,60]
[312051839,1705583093667,-500.0,0.00044109,60]
[312051840,1705583093693,-500.0,0.00044109,60]
[312051841,1705583093721,-500.0,0.00044109,60]
[312051842,1705583093748,-504.83293597,0.00044109,60]
[312051843,1705583093776,-500.0,0.00044109,60]
[312051844,1705583093807,-638.05,0.00044109,60]
[312051845,1705583093833,-503.99322812,0.00044109,60]
[312051846,1705583093860,-502.67519078,0.00044109,60]
[312051847,1705583093887,-501.26033619,0.00044109,60]
[312051848,1705583093914,-512.38150394,0.00044109,60]
[312051849,1705583093941,-500.55436778,0.00044109,60]
[312051850,1705583093967,-500.0,0.00044109,60]
[312051851,1705583093996,-500.0,0.00044109,60]
[312051852,1705583094022,-500.0,0.00044109,60]
[312051853,1705583094048,-500.0,0.00044109,60]
[312051854,1705583094076,-501.59297454,0.00044109,60]
[312051855,1705583094103,-509.06332344,0.00044109,60]
[312051856,1705583094131,-501.78249333,0.00044109,60]
[312051857,1705583094158,-536.72114219,0.00044109,60]
[312051858,1705583094185,-500.0,0.00044109,60]
[312051859,1705583094210,-500.0,0.00044109,60]
[312051860,1705583094236,-500.0,0.00044109,60]
[312051861,1705583094262,-500.0,0.00044109,60]
[312051862,1705583094287,-503.62839991,0.00044109,60]
[312051863,1705583094315,-1166.88,0.00044109,60]
[312051864,1705583094343,-500.0,0.00044109,60]
[312051865,1705583094371,-500.0,0.00044109,60]
[312051866,1705583094398,-500.0,0.00044109,60]
[312051867,1705583094427,-1412.73,0.00044109,60]
[312051868,1705583094455,-500.0,0.00044109,60]
[312051869,1705583094482,-192.7739854,0.00044109,60]
[312051870,1705583094508,-500.0,0.00044109,60]
[312051871,1705583094535,-500.0,0.00044109,60]
[312051872,1705583094561,-559.6452671,0.00044109,60]
[312051873,1705583094586,-500.0,0.00044109,60]
[312051874,1705583094613,-500.0,0.00044109,60]
[312051875,1705583094640,-569.78275668,0.00044109,60]
[312051876,1705583094667,-500.0,0.00044109,60]
[312051877,1705583094694,-500.0,0.00044109,60]
[312051878,1705583094719,-513.67836503,0.00044109,60]
[312051879,1705583094745,-501.44952157,0.00044109,30]
[312051880,1705583094772,-500.0,0.00044109,60]
[312051881,1705583094868,-500.0,0.00044109,60]
[312051882,1705583094895,-521.51352694,0.00044109,60]
[312051883,1705583094922,-500.0,0.00044109,60]
[312051884,1705583094949,-500.0,0.00044109,60]
[312051885,1705583094977,-512.16962409,0.00044109,60]
[312051886,1705583095004,-502.49825283,0.00044109,60]
[312051887,1705583095031,-503.86156984,0.00044109,60]
[312051888,1705583095059,-500.0,0.00044109,60]
[312051889,1705583095267,-500.0,0.00044109,60]
[312051890,1705583095307,-643.57480652,0.00044109,60]
[312051891,1705583095334,-500.0,0.00044109,60]
[312051892,1705583095367,-500.0,0.00044109,60]
[312051893,1705583095395,-502.05601995,0.00044109,60]
[312051894,1705583095422,-500.0,0.00044109,60]
[312051895,1705583095450,-500.0,0.00044109,60]
[312051896,1705583095479,-500.0,0.00044109,60]
[312051897,1705583095506,-230.7888052,0.00044109,60]
[312051898,1705583095533,-507.86439986,0.00044109,60]
[312051899,1705583095562,-550.0,0.00044109,60]
[312051900,1705583095589,-502.46348243,0.00044109,60]
[312051901,1705583095615,-643.30859665,0.00044109,60]
[312051902,1705583095643,-500.0,0.00044109,60]
[312051903,1705583095672,-503.4175724,0.00044109,60]
[312051904,1705583095698,-503.30353569,0.00044109,60]
[312051905,1705583095726,-500.0,0.00044109,60]
[312051906,1705583095752,-500.0,0.00044109,60]
[312051907,1705583095778,-500.0,0.00044109,60]
[312051908,1705583095806,-502.2126617,0.00044109,60]
[312051909,1705583095833,-500.0,0.00044109,60]
[312051910,1705583095865,-500.0,0.00044109,60]
[312051911,1705583095894,-500.0,0.00044109,60]
[312051912,1705583095922,-536.90485475,0.00044109,60]
[312051913,1705583095947,-500.0,0.00044109,60]
[312051914,1705583095975,-710.07,0.00044109,60]
[312051915,1705583096002,-500.0,0.00044109,60]
[312051916,1705583096030,-500.0,0.00044109,60]
[312051917,1705583096056,-508.23651384,0.00044109,60]
[312051918,1705583096084,-500.39094438,0.00044109,60]
[312051919,1705583096111,-501.68443412,0.00044109,60]
[312051920,1705583096138,-500.0,0.00044109,60]
[312051921,1705583096165,-500.0,0.00044109,60]
[312051922,1705583096193,-500.0,0.00044109,60]
[312051923,1705583096219,-500.0,0.00044109,60]
[312051924,1705583096245,-500.0,0.00044109,60]
[312051925,1705583096271,-223.54362701,0.00044109,60]
[312051926,1705583096298,-500.0,0.00044109,60]
[312051927,1705583096324,-501.30454167,0.00044109,60]
[312051928,1705583096419,-500.0,0.00044109,60]
[312051929,1705583096447,-501.73831106,0.00044109,60]
[312051930,1705583096474,-500.74137746,0.00044109,60]
[312051931,1705583096501,-500.0,0.00044109,60]
[312051932,1705583096527,-476.5001471,0.00044109,60]
[312051933,1705583096557,-500.0,0.00044109,60]
[312051934,1705583096585,-741.06,0.00044109,60]
[312051935,1705583096628,-499.88527745,0.00044109,60]
[312051936,1705583096655,-500.0,0.00044109,60]
[312051937,1705583096682,-500.0,0.00044109,60]
[312051938,1705583096708,-500.0,0.00044109,60]
[312051939,1705583096748,-500.0,0.00044109,60]
[312051940,1705583096775,-500.0,0.00044109,60]
[312051941,1705583096800,-500.0,0.00044109,60]
[312051942,1705583096830,-263.15611797,0.00044109,60]
[312051943,1705583096855,-509.39814518,0.00044109,60]
[312051944,1705583096881,-2712.44,0.00044109,60]
[312051945,1705583096908,-500.0,0.00044109,60]
[312051946,1705583096936,-500.0,0.00044109,60]
[312051947,1705583096962,-507.34713246,0.00044109,60]
[312051948,1705583096989,-501.76193937,0.00044109,60]
[312051949,1705583097016,-201.45926007,0.00044109,60]
[312051950,1705583097044,-509.42332748,0.00044109,60]
[312051951,1705583097074,-500.0,0.00044109,60]
[312051952,1705583097102,-500.0,0.00044109,60]
[312051953,1705583097129,-500.0,0.00044109,60]
[312051954,1705583097154,-502.97166261,0.00044109,60]
[312051955,1705583097181,-944.56,0.00044109,60]
[312051956,1705583097207,-507.23095227,0.00044109,60]
[312051957,1705583097233,-500.0,0.00044109,60]
[312051958,1705583097260,-504.99042001,0.00044109,60]
[312051959,1705583097285,-345.79913711,0.00044109,60]
[312051960,1705583097312,-500.0,0.00044109,60]
[312051961,1705583097338,-500.0,0.00044109,60]
[312051962,1705583097368,-309.90649208,0.00044109,60]
[312051963,1705583097395,-500.0,0.00044109,60]
[312051964,1705583097421,-500.0,0.00044109,60]
[312051965,1705583097448,-500.0,0.00044109,60]
[312051966,1705583097475,-2463.05,0.00044109,60]
[312051967,1705583097501,-500.0,0.00044109,60]
[312051968,1705583097529,-500.0,0.00044109,60]
[312051969,1705583097556,-500.0,0.00044109,60]
[312051970,1705583097583,-500.0,0.00044109,60]
[312051971,1705583097610,-500.0,0.00044109,60]
[312051972,1705583097720,-500.0,0.00044109,60]
[312051973,1705583097771,-500.0,0.00044109,60]
[312051974,1705583097798,-500.0,0.00044109,60]
[312051975,1705583097829,-500.0,0.00044109,60]
[312051976,1705583097856,-500.0,0.00044109,60]
[312051977,1705583097882,-4323.32068643,0.00044109,60]
[312051978,1705583105020,-1236.55157254,0.0004,30]
[312051979,1705583105056,-262318.10894673,0.00043068,60]
[312051980,1705583105088,-2486.4,0.00043835,60]
[312051981,1705583105191,-500.0,0.00043835,60]
[312051982,1705583105222,-977.60931357,0.00044109,60]
[312051983,1705583105250,-504.8200028,0.00044109,60]
[312051984,1705583105278,-509.28,0.00044109,60]
[312051985,1705583105306,-4078.26,0.00044109,60]
[312051986,1705583105334,-502.14821897,0.00044109,60]
[312051987,1705583105361,-500.0,0.00044109,60]
[312051988,1705583105394,-502.46808783,0.00044109,60]
[312051989,1705583105423,-4407.79,0.00044109,60]
[312051990,1705583105452,-500.0,0.00044109,60]
[312051991,1705583105482,-500.0,0.00044109,60]
[312051992,1705583105511,-507.81839334,0.00044109,60]
[312051993,1705583105540,-198.94788818,0.00044109,60]
[312051994,1705583105567,-500.0,0.00044109,60]
[312051995,1705583105594,-443.9601873,0.00044109,60]
[312051996,1705583105623,-500.0,0.00044109,60]
[312051997,1705583105649,-500.0,0.00044109,60]
[312051998,1705583105675,-508.63313221,0.00044109,60]
[312051999,1705583105701,-500.0,0.00044109,60]
[312052000,1705583105728,-500.0,0.00044109,60]
[312052001,1705583105754,-500.0,0.00044109,60]
[312052002,1705583105781,-500.0,0.00044109,60]
[312052003,1705583105808,-500.0,0.00044109,60]
[312052004,1705583105836,-500.0,0.00044109,60]
[312052005,1705583105867,-950.05,0.00044109,60]
[312052006,1705583105896,-500.0,0.00044109,60]
[312052007,1705583105928,-512.11337829,0.00044109,60]
[312052008,1705583105956,-500.0,0.00044109,60]
[312052009,1705583105986,-500.0,0.00044109,60]
[312052010,1705583106014,-500.53370218,0.00044109,60]
[312052011,1705583106042,-500.0,0.00044109,60]
[312052012,1705583106075,-500.0,0.00044109,60]
[312052013,1705583106107,-500.0,0.00044109,60]
[312052014,1705583106136,-169.43731133,0.00044109,60]
[312052015,1705583106164,-500.0,0.00044109,60]
[312052016,1705583106191,-500.0,0.00044109,60]
[312052017,1705583106219,-620.11,0.00044109,60]
[312052018,1705583106246,-500.0,0.00044109,60]
[312052019,1705583106272,-1085.92,0.00044109,60]
[312052020,1705583106299,-502.8011451,0.00044109,60]
[312052021,1705583106329,-500.0,0.00044109,60]
[312052022,1705583106356,-500.0,0.00044109,60]
[312052023,1705583106449,-500.0,0.00044109,60]
[312052024,1705583106476,-500.0,0.00044109,60]
[312052025,1705583106502,-500.0,0.00044109,60]
[312052026,1705583106533,-500.0,0.00044109,60]
[312052027,1705583106560,-513.06,0.00044109,60]
[312052028,1705583106591,-500.0,0.00044109,60]
[312052029,1705583106618,-1463.17871963,0.00044109,60]
[312052030,1705583107763,-687.4903872,0.00019174,2]
[312052031,1705583107790,-154.95351395,0.00019175,3]
[312052032,1705583107816,-165.124686,0.00019178,2]
[312052033,1705583107842,-3566.31,0.00019964,3]
[312052034,1705583107867,-7954.79361021,0.00019974,2]
[312052035,1705583107894,-47471.32780264,0.00019974,2]
[312052036,1705583122272,-500.0,0.00043835,60]
[312052037,1705583122297,-500.0,0.00043835,60]
[312052038,1705583122322,-500.0,0.00043835,60]
[312052039,1705583122348,-500.0,0.00043835,60]
[312052040,1705583122375,-4206.04128037,0.00044109,60]
[312052041,1705583122399,-500.0,0.00044109,60]
[312052042,1705583122426,-500.0,0.00044109,60]
[312052043,1705583122452,-4922.18,0.00044109,60]
[312052044,1705583122476,-500.0,0.00044109,60]
[312052045,1705583122500,-500.0,0.00044109,60]
[312052046,1705583122525,-500.0,0.00044109,60]
[312052047,1705583122551,-4567.86,0.00044109,60]
[312052048,1705583122576,-1966.44,0.00044109,60]
[312052049,1705583122602,-500.58898887,0.00044109,60]
[312052050,1705583122685,-500.0,0.00044109,60]
[312052051,1705583122709,-527.63841557,0.00044109,60]
[312052052,1705583122734,-500.0,0.00044109,60]
[312052053,1705583122758,-500.0,0.00044109,60]
[312052054,1705583122782,-1362.61,0.00044109,60]
[312052055,1705583122807,-558.04977188,0.00044109,60]
[312052056,1705583122833,-500.0,0.00044109,60]
[312052057,1705583122858,-500.0,0.00044109,60]
[312052058,1705583122883,-818.78,0.00044109,60]
[312052059,1705583122907,-500.0,0.00044109,60]
[312052060,1705583122930,-500.0,0.00044109,60]
[312052061,1705583122955,-1938.41,0.00044109,60]
[312052062,1705583122979,-1017.2,0.00044109,60]
[312052063,1705583123005,-200.0,0.00044109,60]
[312052064,1705583123029,-500.74341688,0.00044109,60]
[312052065,1705583123053,-500.74779451,0.00044109,60]
[312052066,1705583123078,-1175.25,0.00044109,60]
[312052067,1705583123104,-500.0,0.00044109,60]
[312052068,1705583123129,-500.0,0.00044109,60]
[312052069,1705583123154,-500.0,0.00044109,60]
[312052070,1705583123179,-500.0,0.00044109,60]
[312052071,1705583123204,-500.0,0.00044109,60]
[312052072,1705583123229,-500.0,0.00044109,60]
[312052073,1705583123255,-926.27,0.00044109,60]
[312052074,1705583123279,-508.67156011,0.00044109,60]
[312052075,1705583123303,-500.0,0.00044109,60]
[312052076,1705583123328,-1757.42,0.00044109,60]
[312052077,1705583123353,-500.0,0.00044109,60]
[312052078,1705583123378,-500.0,0.00044109,60]
[312052079,1705583123406,-1234.54,0.00044109,60]
[312052080,1705583123431,-1757.82,0.00044109,60]
[312052081,1705583123456,-500.0,0.00044109,60]
[312052082,1705583123482,-500.0,0.00044109,60]
[312052083,1705583123505,-185.26883499,0.00044109,60]
[312052084,1705583123531,-2486.4,0.00044109,60]
[312052085,1705583123557,-500.0,0.00044109,60]
[312052086,1705583123581,-500.0,0.00044109,60]
[312052087,1705583123664,-502.79057372,0.00044109,60]
[312052088,1705583123692,-500.0,0.00044109,60]
[312052089,1705583123717,-500.0,0.00044109,60]
[312052090,1705583123742,-2479.0,0.00044192,60]
[312052091,1705583123768,-500.0,0.00044383,60]
[312052092,1705583123794,-502.03357772,0.00044383,60]
[312052093,1705583123819,-500.0,0.00044383,60]